{"text_format":"1","workbook":"xlsx","n_sheets":3,"sheets":["Kieslys  Menu","Data","Charts"],"not_rendered":{"charts":5,"images":0,"macros":1,"external_links":0,"defined_names":2,"comments":0,"pivot_tables":0},"unopened":[],"bounds":{"document_bytes":16777216,"sheet_cells":100000,"rows_first":2000,"rows_last":500,"rows_between":2000,"halvings":0,"cell_chars":16384,"cell_head_chars":4096},"cells_cut":0,"cells_raw":0,"read":"whole","date_system":"1900"}

{"sheet":"Kieslys  Menu","index":0,"n_rows":14,"n_cols":7,"rows_kept":14,"cut":false,"hidden":false,"merged":[]}
[]
[]
[]
[null,null,null,null,"Kopiëer die Excel data na 'n 3,5\" skyfie",1,"Copy the Excel file with scanned data to a stiffy"]
[null,null,null,null,"Verseker dat die lêer \"data.xls\" heet ",2,"Ensure it is called \"data.xls\""]
[null,null,null,null,"Klies die \"Laai/Load\" opsie",3,"Click on the \"Laai/Load\" button "]
[null,null,null,null,"Vervang die rooi teks met toepaslike inligting",4,"Replace the red text with the relavant information"]
[null,null,null,null,"Selekteer \"Druk/Print\"",5,"Click the \"Druk/Print\" button"]
[null,null,null,null,"Indien tevrede kies \"Herstel/Reset\"",6,"When satisfied, click \"Herstel/Reset\""]
[]
[null,null,null,null,"Die gebruik van die kiesopsies hieronder sal",null,"Using the buttons below will replace this screen with  "]
[null,null,null,null,"veroorsaak dat hierdie skerm vervang word met",null,"the data-set. To return here, select the \"Kieslys/Menu\" tab"]
[null,null,null,null,"die data-stel. Keer terug hierheen met behulp van",null,"at the bottom of this worksheet."]
[null,null,null,null,"die \"Kieslys/Menu\" duimdruk onderaan."]

{"sheet":"Data","index":1,"n_rows":207,"n_cols":25,"rows_kept":207,"cut":false,"hidden":false,"merged":[[19,16,19,20],[12,2,16,2],[19,4,19,14],[10,4,10,21],[7,2,7,21],[0,24,0,38],[13,24,13,38],[8,2,8,21],[1,6,1,18],[2,2,2,5],[2,6,2,10],[1,2,1,5],[3,2,3,5],[3,6,3,10],[4,2,4,8],[4,9,4,10],[5,2,5,8],[5,9,5,10],[17,24,18,38],[1,24,2,38],[3,24,3,38],[4,24,5,38],[6,24,7,38],[8,24,9,38],[10,24,11,38],[12,24,12,38],[14,24,15,38],[16,24,16,38]]}
[null,null,null,null,null,null,null,null,null,null,null,null,null,null,null,null,null,null,null,null,null,null,null,null,"Vraag / Question"]
[null,null,"Dosent/Lecturer",null,null,null,"Prof Benda Hofmeyr ",null,null,null,null,null,null,null,null,null,null,null,null,null,null,null,null,null,"1. Die dosent het studente met respek behandel / The lecturer treated students with respect."]
[null,null,"Module ",null,null,null,"FIL710"]
[null,null,"Datum/Date",null,null,null,"2019-03-14",null,null,null,null,null,null,null,null,null,null,null,null,null,null,null,null,null,"2. Die dosent was toeganklik / The lecturer was approachable."]
[null,null,"Aantal vorms/Number of forms",null,null,null,null,null,null,{"$f":"COUNTA(H$200:H$5200)","v":8},{"$f":"COUNTA(T$207:T$5207)","v":1},null,null,null,null,null,null,null,null,null,null,null,null,null,"3. Die onderrigaktiwiteite het my gehelp om voor te berei vir assesserings / Teaching activities helped me to prepare for assessment."]
[null,null,"Gemiddelde/Average",null,null,null,null,null,null,{"$f":"(P18*11)/11","v":4.8977272727272725}]
[null,null,null,null,null,null,null,null,null,null,null,null,null,null,null,null,null,null,null,null,null,null,null,null,"4. Die onderrigaktiwiteite het ooreengestem met die genoemde uitkomste / Teaching activities were in line with the stated outcomes."]
[null,null,"Nota: Waar studente nie alle antwoorde voltooi het nie, tel die kolomme nie op na die aantal vorms nie. "]
[null,null,"Note: Where students did not answer all questions, columns did not add up to the number of forms. ",null,null,null,null,null,null,null,null,null,null,null,null,null,null,null,null,null,null,null,null,null,"5. Die dosent het die leerinhoud verstaanbaar verduidelik / The lecturer explained the subject matter in a way that I can understand."]
[]
[null,null,null,null,null,null,null,null,null,null,null,null,null,null,null,null,null,null,null,null,null,null,null,null,"6. Ek het die dosent as ’n kundige op sy/haar gebied ervaar / I experienced the lecturer as knowledgeable in his/her subject."]
[null,null,null,null,1,2,3,4,5,6,7,8,9,10,11,"G/A",12,13,14,15,16,"G/A"]
[null,{"$f":"COUNTIF(E18:O18,0)","v":0},"Respons(-e)",5,{"$f":"COUNTIF(E$200:E$5200,$D13)","v":8},8,6,7,7,8,7,7,8,7,6,{"$f":"IF(SUM(E$13:O$17)=0,0,SUM(E13:O13)/SUM(E$13:O$17))","v":0.89772727272727271},{"$f":"COUNTIF(P$200:P$5200,$D13)","v":0},{"$f":"COUNTIF(Q$200:Q$5200,$D13)","v":0},{"$f":"COUNTIF(R$200:R$5200,$D13)","v":0},{"$f":"COUNTIF(S$200:S$5200,$D13)","v":0},{"$f":"COUNTIF(T$200:T$5200,$D13)","v":0},{"$f":"IF(SUM(Q$13:U$17)=0,0,SUM(Q13:U13)/SUM(Q$13:U$17))","v":0},null,null,"7. Die dosent was goed voorberei / The lecturer was well prepared."]
[null,{"$f":"COUNTIF(Q18:U18,0)","v":5},null,4,{"$f":"COUNTIF(E$200:E$5200,$D14)","v":0},{"$f":"COUNTIF(F$200:F$5200,$D14)","v":0},2,1,1,0,1,1,0,1,2,{"$f":"IF(SUM(E$13:O$17)=0,0,SUM(E14:O14)/SUM(E$13:O$17))","v":0.10227272727272728},{"$f":"COUNTIF(P$200:P$5200,$D14)","v":0},0,0,0,0,{"$f":"IF(SUM(Q$13:U$17)=0,0,SUM(Q14:U14)/SUM(Q$13:U$17))","v":0},null,null,"8. Die dosent het intellektuele uitdagings gestel / The lecturer challenged me intellectually."]
[null,null,null,3,{"$f":"COUNTIF(E$200:E$5200,$D15)","v":0},0,0,0,0,0,0,0,0,0,0,{"$f":"IF(SUM(E$13:O$17)=0,0,SUM(E15:O15)/SUM(E$13:O$17))","v":0},0,0,0,0,0,{"$f":"IF(SUM(Q$13:U$17)=0,0,SUM(Q15:U15)/SUM(Q$13:U$17))","v":0},null,null,"9. Die onderrigbenadering het geleentheid gebied vir interaksie in die klas / The teaching approach provided opportunity for interaction in class."]
[null,null,null,2,{"$f":"COUNTIF(E$200:E$5200,$D16)","v":0},0,0,0,0,0,0,0,0,0,0,{"$f":"IF(SUM(E$13:O$17)=0,0,SUM(E16:O16)/SUM(E$13:O$17))","v":0},0,0,0,0,0,{"$f":"IF(SUM(Q$13:U$17)=0,0,SUM(Q16:U16)/SUM(Q$13:U$17))","v":0}]
[null,null,null,1,{"$f":"COUNTIF(E$200:E$5200,$D17)","v":0},0,0,0,0,0,0,0,0,0,0,{"$f":"IF(SUM(E$13:O$17)=0,0,SUM(E17:O17)/SUM(E$13:O$17))","v":0},0,0,0,0,0,{"$f":"IF(SUM(Q$13:U$17)=0,0,SUM(Q17:U17)/SUM(Q$13:U$17))","v":0},null,null,"10. Die dosent was entoesiasties / The lecturer was enthusiastic."]
[null,null,null,"GEM/\nAVG",{"$f":"IF(SUM(E13:E17)=0,0,(AVERAGE(E13*$D13,E14*$D14,E15*$D15,E16*$D16,E17*$D17))/(E13+E14+E15+E16+E17)*5)","v":5},5,4.75,4.875,4.875,5,4.875,4.875,5,4.875,4.75,{"$f":"IF((11-B13)=0,0,SUM(E18:O18)/(11-B13))","v":4.8977272727272725},{"$f":"IF(SUM(Q13:Q17)=0,0,(AVERAGE(Q13*$D13,Q14*$D14,Q15*$D15,Q16*$D16,Q17*$D17))/(Q13+Q14+Q15+Q16+Q17)*5)","v":0},{"$f":"IF(SUM(R13:R17)=0,0,(AVERAGE(R13*$D13,R14*$D14,R15*$D15,R16*$D16,R17*$D17))/(R13+R14+R15+R16+R17)*5)","v":0},{"$f":"IF(SUM(S13:S17)=0,0,(AVERAGE(S13*$D13,S14*$D14,S15*$D15,S16*$D16,S17*$D17))/(S13+S14+S15+S16+S17)*5)","v":0},{"$f":"IF(SUM(T13:T17)=0,0,(AVERAGE(T13*$D13,T14*$D14,T15*$D15,T16*$D16,T17*$D17))/(T13+T14+T15+T16+T17)*5)","v":0},{"$f":"IF(SUM(U13:U17)=0,0,(AVERAGE(U13*$D13,U14*$D14,U15*$D15,U16*$D16,U17*$D17))/(U13+U14+U15+U16+U17)*5)","v":0},{"$f":"IF((5-B14)=0,0,SUM(Q18:U18)/(5-B14))","v":0},null,null,"11. Die dosent het geleenthede vir onafhanklike studie geskep / The lecturer created opportunities for independent study."]
[null,null,null,"TOT",{"$f":"SUM(E13:E17)","v":8},8,8,8,8,8,8,8,8,8,8,null,0,{"$f":"SUM(R13:R17)","v":0},{"$f":"SUM(S13:S17)","v":0},{"$f":"SUM(T13:T17)","v":0},{"$f":"SUM(U13:U17)","v":0}]
[null,null,null,null,"Onderrig en assessering/Teaching and assessment",null,null,null,null,null,null,null,null,null,null,null,"Add.Items"]
[]
[]
[]
[]
[]
[]
[]
[]
[]
[]
[]
[]
[]
[]
[]
[]
[]
[]
[]
[]
[]
[]
[]
[]
[]
[]
[]
[]
[]
[]
[]
[]
[]
[]
[]
[]
[]
[]
[]
[]
[]
[]
[]
[]
[]
[]
[]
[]
[]
[]
[]
[]
[]
[]
[]
[]
[]
[]
[]
[]
[]
[]
[]
[]
[]
[]
[]
[]
[]
[]
[]
[]
[]
[]
[]
[]
[]
[]
[]
[]
[]
[]
[]
[]
[]
[]
[]
[]
[]
[]
[]
[]
[]
[]
[]
[]
[]
[]
[]
[]
[]
[]
[]
[]
[]
[]
[]
[]
[]
[]
[]
[]
[]
[]
[]
[]
[]
[]
[]
[]
[]
[]
[]
[]
[]
[]
[]
[]
[]
[]
[]
[]
[]
[]
[]
[]
[]
[]
[]
[]
[]
[]
[]
[]
[]
[]
[]
[]
[]
[]
[]
[]
[]
[]
[]
[]
[]
[]
[]
[]
[]
[]
[]
[]
[]
[]
[]
[]
[]
[]
[]
[]
[]
[]
[]
[]
[]
[]
[]
[null,null,null,null,5,5,5,5,5,5,5,5,5,5,5,0,0,0,0,0]
[null,null,null,null,5,5,5,5,5,5,5,5,5,5,5,0,0,0,0,0]
[null,null,null,null,5,5,4,5,5,5,5,5,5,5,4,0,0,0,0,0]
[null,null,null,null,5,5,5,5,5,5,5,5,5,5,5,0,0,0,0,0]
[null,null,null,null,5,5,5,5,5,5,5,5,5,5,5,0,0,0,0,0]
[null,null,null,null,5,5,5,5,5,5,5,5,5,5,5,0,0,0,0,0]
[null,null,null,null,5,5,4,4,4,5,4,4,5,4,4,0,0,0,0,0]
[null,null,null,null,5,5,5,5,5,5,5,5,5,5,5,0,0,0,0,0]

{"sheet":"Charts","index":2,"n_rows":4,"n_cols":7,"rows_kept":4,"cut":false,"hidden":false,"merged":[]}
[]
[null,null,null,null,null,null,"Prof Benda Hofmeyr "]
[]
[null,null,null,null,null,null,"2019-03-14"]